bitfinex-derivatives/quotes_SOLF0:USTF0_20250901
["timestamp","ask_amount","ask_price","bid_price","bid_amount"]
[1756759531806,341.14,197.1,196.92,12.17968979]
[1756759532003,341.14,197.1,196.72,7.85]
[1756759532004,71.0885,196.95,196.72,7.85]
[1756759532210,71.1059,196.9,196.75,12.17968979]
[1756759532605,155.96,196.89,196.75,12.17968979]
[1756759532802,71.0968,196.93,196.75,12.17968979]
[1756759532999,156.04,196.92,196.76,7.85]
[1756759533210,156.0,196.92,196.76,7.85]
[1756759533607,12.17968979,196.97,196.76,7.85]
[1756759533807,155.92,196.95,196.76,7.85]
[1756759534507,12.17968979,196.97,196.76,7.85]
[1756759535306,155.64,196.95,196.76,7.85]
[1756759535510,12.17968979,196.97,196.76,7.85]
[1756759535511,155.56,196.94,196.76,7.85]
[1756759535805,12.17968979,197.04,196.81,7.85]
[1756759536009,155.46,196.99,196.81,7.85]
[1756759536214,167.63968979,196.99,196.81,7.85]
[1756759536614,213.0875,197.12,196.81,7.85]
[1756759536907,341.26,197.11,196.86,7.85]
[1756759537109,341.26,197.11,196.81,155.56]
[1756759537110,155.96,197.1,196.91,7.85]
[1756759537306,156.02,197.09,196.91,7.85]
[1756759537502,168.19968979,197.09,196.91,7.85]
[1756759537805,155.9,197.08,196.91,7.85]
[1756759538613,155.8,197.07,196.91,7.85]
[1756759538815,12.17968979,197.05,196.85,8.14]
[1756759539111,12.17968979,197.0,196.75,8.14]
[1756759539304,155.68,196.99,196.75,8.14]
[1756759540014,124.08,196.98,196.75,8.14]
[1756759540208,100.6,196.97,196.78,8.14]
[1756759540410,12.17968979,197.03,196.78,8.14]
[1756759540606,8.98,197.02,196.83,8.14]
[1756759541415,8.98,197.02,196.77,12.17968979]
[1756759541620,12.17968979,196.98,196.76,8.14]
[1756759542117,356.84,196.97,196.76,8.14]
[1756759542306,15.56,196.96,196.77,12.17968979]
[1756759542511,155.26,196.97,196.78,8.14]
[1756759542711,341.28,196.99,196.78,8.14]
[1756759542914,341.28,196.99,196.83,8.14]
[1756759543110,12.17968979,197.09,196.88,8.14]
[1756759543311,155.1,197.05,196.88,8.14]
[1756759543517,155.02,197.06,196.88,8.14]
[1756759544021,162.52968462,197.06,196.88,8.14]
[1756759544613,7.50968462,197.02,196.82,8.14]
[1756759545219,7.50968462,196.93,196.74,341.22]
[1756759545420,7.50968462,196.83,196.64,8.14]
[1756759545720,353.6,196.92,196.5,8.14]
[1756759545721,7.50968462,196.78,196.5,8.14]
[1756759546022,347.48,196.77,196.55,8.14]
[1756759546216,7.50968462,196.74,196.55,8.14]
[1756759546621,347.48,196.77,196.55,8.14]
[1756759546622,7.50968462,196.73,196.55,8.14]
[1756759546821,167.92,196.72,196.55,8.14]
[1756759547321,348.80968462,196.77,196.55,8.14]
[1756759547722,167.66,196.76,196.55,8.14]
[1756759547916,167.68,196.75,196.59,8.14]
[1756759548313,341.3,196.77,196.59,8.14]
[1756759548713,71.1642,196.74,196.59,8.14]
[1756759548915,75.7548,196.7,196.59,8.14]
[1756759549122,71.1943,196.66,196.54,12.16227338]
[1756759549319,71.1943,196.66,196.45,4.21924127]
[1756759549320,71.2289,196.56,196.44,8.14]
[1756759549518,213.5567,196.68,196.44,8.14]
[1756759549519,167.24,196.58,196.44,8.14]
[1756759549719,167.14,196.61,196.45,8.14]
[1756759549915,341.44,196.63,196.45,8.14]
[1756759550325,341.44,196.63,196.5,8.14]
[1756759550520,167.0,196.72,196.55,8.14]
[1756759551026,179.16227338,196.72,196.5,12.16227338]
[1756759551226,179.16227338,196.72,196.49,8.14]
[1756759551433,12.16227338,196.67,196.49,8.14]
[1756759551723,341.48,196.75,196.44,341.48]
[1756759551724,12.16227338,196.65,196.44,341.48]
[1756759552122,10.02,196.64,196.39,4.21924127]
[1756759552426,12.16227338,196.59,196.35,12.35924127]
[1756759552627,341.56,196.58,196.37,4.21924127]
[1756759552922,351.62,196.57,196.39,4.21924127]
[1756759553227,341.58,196.58,196.39,4.21924127]
[1756759553427,167.2,196.57,196.4,4.21924127]
[1756759553623,341.58,196.58,196.4,4.21924127]
[1756759553823,167.2,196.57,196.41,8.14]
[1756759554329,12.16227338,196.52,196.37,4.21924127]
[1756759554529,341.58,196.58,196.31,4.21924127]
[1756759554821,12.16227338,196.5,196.26,8.14]
[1756759555025,12.16227338,196.45,196.22,12.16227338]
[1756759555227,12.16227338,196.45,196.2,8.14]
[1756759555228,352.12,196.44,196.2,20.30227338]
[1756759555428,171.1,196.43,196.2,8.14]
[1756759555826,341.7,196.44,196.2,8.14]
[1756759556025,170.98,196.43,196.2,8.14]
[1756759556231,12.16227338,196.4,196.2,8.14]
[1756759556529,171.0,196.39,196.2,8.14]
[1756759556721,71.2974,196.37,196.2,8.14]
[1756759557127,171.0,196.39,196.2,8.14]
[1756759557322,242.4064,196.4,196.21,12.16227338]
[1756759557519,171.12,196.39,196.21,12.16227338]
[1756759558028,171.12,196.39,196.13,71.3844]
[1756759558029,71.3011,196.36,196.13,12.16227338]
[1756759558219,171.7,196.35,196.15,8.14]
[1756759558426,171.7,196.35,196.16,12.16227338]
[1756759558625,247.59,196.35,196.16,12.16227338]
[1756759559131,171.7,196.35,196.16,12.16227338]
[1756759559327,71.2853,196.41,196.18,71.3649]
[1756759559532,71.2879,196.39,196.23,8.14]
[1756759559827,4.5839,196.34,196.16,12.16227338]
[1756759560024,71.2954,196.37,196.16,12.16227338]
[1756759560225,412.973,196.44,196.2,8.14]
[1756759560226,12.16227338,196.42,196.2,8.14]
[1756759560426,71.2956,196.37,196.2,8.14]
[1756759560624,71.2954,196.37,196.2,8.14]
[1756759560821,12.16227338,196.42,196.2,8.14]
[1756759560822,71.2651,196.46,196.2,8.14]
[1756759561023,71.2879,196.39,196.2,8.14]
[1756759561225,71.2967,196.37,196.2,8.14]
[1756759561422,71.3066,196.34,196.2,8.14]
[1756759561724,171.92,196.33,196.2,8.14]
[1756759562032,4.5844,196.32,196.14,8.14]
[1756759562430,171.92,196.33,196.14,8.14]
[1756759562631,71.3099,196.34,196.14,8.14]
[1756759563024,12.16227338,196.39,196.14,8.14]
[1756759563234,71.62,196.38,196.14,8.14]
[1756759563625,12.16227338,196.39,196.14,8.14]
[1756759563934,12.16227338,196.68,196.18,8.14]
[1756759564129,10.42,196.38,196.18,8.14]
[1756759564326,12.16227338,196.41,196.18,8.14]
[1756759564526,12.16227338,196.44,196.22,4.5866]
[1756759564731,12.16227338,196.44,196.2,8.14]
[1756759564732,354.32227338,196.48,196.25,8.14]
[1756759564927,342.16,196.48,196.26,8.14]
[1756759565127,12.16227338,196.53,196.32,8.14]
[1756759565327,12.16227338,196.56,196.32,8.14]
[1756759565534,171.22,196.55,196.38,8.14]
[1756759565731,171.2,196.59,196.38,8.14]
[1756759565932,12.16227338,196.66,196.44,8.14]
[1756759566328,342.2,196.69,196.44,8.14]
[1756759566329,10.4,196.65,196.44,8.14]
[1756759566530,342.2,196.69,196.44,8.14]
[1756759566531,12.16227338,196.68,196.44,8.14]
[1756759566731,171.1,196.67,196.44,8.14]
[1756759566925,342.2,196.69,196.47,8.14]
[1756759567126,342.2,196.69,196.51,8.14]
[1756759567332,342.18,196.81,196.55,71.2294]
[1756759567530,6.04655632,196.8,196.59,8.14]
[1756759567832,173.28444112,196.79,196.59,8.14]
[1756759568040,171.0,196.79,196.59,20.30227338]
[1756759568231,171.0,196.79,196.6,7.98]
[1756759568428,2.28532755,196.78,196.6,7.98]
[1756759568634,2.28532755,196.77,196.6,7.98]
[1756759568830,342.18,196.81,196.6,7.98]
[1756759569032,2.28551329,196.8,196.6,7.98]
[1756759569226,2.28551329,196.79,196.6,7.98]
[1756759569435,342.18,196.81,196.6,7.98]
[1756759569436,2.28551329,196.78,196.6,7.98]
[1756759569634,173.48551329,196.77,196.6,20.14227338]
[1756759569836,12.16227338,196.91,196.66,7.98]
[1756759570138,21.10664254,196.9,196.66,7.98]
[1756759570331,5.90664254,196.89,196.71,7.98]
[1756759570538,5.91054556,196.88,196.71,7.98]
[1756759570739,5.91054556,196.88,196.7,12.16227338]
[1756759570740,5.91054556,196.87,196.65,7.98]
[1756759570935,2.28877904,196.86,196.7,7.98]
[1756759571239,2.28877904,196.85,196.7,7.98]
[1756759571440,171.38,196.92,196.7,7.98]
[1756759571441,2.28877904,196.84,196.7,7.98]
[1756759571644,171.38,196.92,196.74,7.98]
[1756759571946,5.92055216,196.91,196.74,7.98]
[1756759572235,12.16227338,196.88,196.67,7.98]
[1756759572535,177.74055216,196.87,196.64,7.98]
[1756759572737,347.68563427,196.93,196.57,342.14]
[1756759572738,5.92055216,196.86,196.7,7.98]
[1756759572936,3.62777836,196.85,196.64,7.98]
[1756759573137,3.62777836,196.84,196.64,7.98]
[1756759573337,342.08,196.93,196.74,7.98]
[1756759573543,3.60600303,196.92,196.74,7.98]
[1756759573734,3.60600303,196.91,196.74,7.98]
[1756759574046,3.60600303,196.9,196.74,7.98]
[1756759574242,3.60600303,196.89,196.67,12.16227338]
[1756759574535,21.37391068,196.88,196.68,7.98]
[1756759574740,5.60563427,196.86,196.68,7.98]
[1756759575036,3.60600303,196.85,196.68,7.98]
[1756759575237,3.60600303,196.84,196.68,7.98]
[1756759575436,12.16227338,196.81,196.59,7.98]
[1756759575643,3.60600303,196.8,196.63,7.98]
[1756759575837,5.60563427,196.87,196.68,7.98]
[1756759576038,8.39005181,196.98,196.78,7.98]
[1756759576238,8.39005181,197.04,196.87,7.98]
[1756759576444,8.39005181,197.05,196.92,7.98]
[1756759576650,8.39005181,197.07,196.97,7.98]
[1756759576943,8.39005181,197.19,197.02,7.98]
[1756759577141,8.39005181,197.21,197.02,7.98]
[1756759577341,8.39005181,197.26,197.12,7.98]
[1756759577637,8.39005181,197.27,197.17,7.98]
[1756759577841,8.39005181,197.27,197.11,71.0277]
[1756759577842,11.18673575,197.38,197.23,7.98]
[1756759578039,78.4655,197.46,197.26,12.16227338]
[1756759578234,11.18673575,197.47,197.31,12.16227338]
[1756759578442,11.18673575,197.54,197.32,7.98]
[1756759578643,11.18673575,197.57,197.4,7.98]
[1756759578842,7.56,197.62,197.44,12.16227338]
[1756759579042,70.8441,197.63,197.46,7.98]
[1756759579238,11.18673575,197.67,197.49,12.16227338]
[1756759579448,78.38,197.69,197.5,6.3501095]
[1756759579641,78.38,197.69,197.52,7.98]
[1756759579944,7.56,197.69,197.53,6.34883299]
[1756759580145,7.56,197.69,197.57,12.16227338]
[1756759580346,7.56,197.69,197.58,6.34883299]
[1756759580535,7.56,197.69,197.57,12.16227338]
[1756759580739,7.56,197.69,197.58,12.29917222]
[1756759580937,7.56,197.76,197.54,12.16227338]
[1756759581138,7.56,197.76,197.55,12.29863325]
[1756759581338,12.16227338,197.77,197.56,12.29863325]
[1756759581537,7.56,197.75,197.57,12.29863325]
[1756759581741,185.92,197.74,197.58,12.29914094]
[1756759581942,7.56,197.73,197.24,70.9783]
[1756759582138,539.84227338,197.74,197.24,70.9783]
[1756759582139,12.16227338,197.69,197.33,7.98]
[1756759582344,7.56,197.63,197.38,12.16227338]
[1756759582647,7.56,197.62,197.43,12.16227338]
[1756759582844,7.56,197.62,197.48,12.16227338]
[1756759583043,7.56,197.63,197.49,12.62652446]
[1756759583345,7.56,197.62,197.5,4.36652446]
[1756759583650,27.18,197.71,197.5,12.16227338]
[1756759583846,7.56,197.68,197.46,7.98]
[1756759584146,7.56,197.63,197.46,12.16227338]
[1756759584343,7.56,197.63,197.42,12.16227338]
[1756759584543,7.56,197.63,197.4,7.98]
[1756759585052,7.56,197.63,197.41,5.11603124]
[1756759585352,7.56,197.58,197.33,12.16227338]
[1756759585541,7.56,197.58,197.34,5.10903146]
[1756759585741,7.56,197.58,197.3,4.14399236]
[1756759585742,70.8887,197.5,197.35,5.10903146]
[1756759585943,70.8755,197.54,197.27,341.02]
[1756759585944,70.9172,197.42,197.27,341.02]
[1756759586248,70.9509,197.33,197.28,5.11043589]
[1756759586445,78.4984,197.36,197.21,4.14399236]
[1756759586646,70.9532,197.32,197.22,5.10728849]
[1756759586854,12.16227338,197.37,197.23,5.10728849]
[1756759587050,7.56,197.31,197.14,4.14399236]
[1756759587251,184.1,197.38,197.17,4.14399236]
[1756759587448,184.1,197.38,197.21,4.14399236]
[1756759587654,7.56,197.41,197.22,5.10589378]
[1756759587844,7.56,197.41,197.23,5.10589378]
[1756759588051,7.56,197.41,197.24,5.10589378]
[1756759588252,7.56,197.35,197.13,4.14399236]
[1756759588552,7.56,197.31,197.14,5.10142044]
[1756759588754,7.56,197.31,197.15,5.10142044]
[1756759588957,7.56,197.31,197.16,5.10142044]
[1756759589149,7.56,197.31,197.17,5.10142044]
[1756759589150,70.9637,197.29,197.17,5.10142044]
[1756759589345,78.5198,197.31,197.18,5.10142044]
[1756759589548,70.9348,197.37,197.19,13.08142044]
[1756759589849,70.9348,197.37,197.12,4.14399236]
[1756759589850,70.9637,197.29,197.2,5.10142044]
[1756759590055,70.9925,197.21,197.12,7.98]
[1756759590255,71.0066,197.18,197.13,5.03170764]
[1756759590553,340.84,197.28,197.14,5.03170764]
[1756759590757,70.9819,197.24,197.18,4.09226124]
[1756759591055,7.56,197.27,197.19,5.03170764]
[1756759591251,70.9504,197.33,197.19,5.03170764]
[1756759591252,7.56,197.35,197.2,5.03170764]
[1756759591454,70.9459,197.34,197.24,4.09226124]
[1756759591646,70.9531,197.32,197.25,5.03170764]
[1756759591856,7.56,197.27,197.21,4.09226124]
[1756759592047,78.532,197.27,197.22,4.98390159]
[1756759592252,70.9793,197.25,197.21,4.09226124]
[1756759592454,70.9576,197.31,197.22,5.57259446]
[1756759592651,78.4992,197.36,197.3,4.08014452]
[1756759592857,70.9648,197.29,197.23,5.57259446]
[1756759593155,70.9559,197.32,197.07,7.98]
[1756759593156,70.9896,197.22,197.07,7.98]
[1756759593457,70.9855,197.23,197.08,2.59956735]
[1756759593458,70.9857,197.23,197.08,2.59956735]
[1756759593648,3.99,197.27,197.09,2.59956735]
[1756759593851,3.99,197.27,197.1,18.9641287]
[1756759593852,70.9856,197.23,197.1,18.9641287]
[1756759594053,70.9853,197.24,197.11,2.59956735]
[1756759594252,70.9853,197.24,197.12,2.59956735]
[1756759594461,70.9925,197.22,197.13,2.59956735]
[1756759594656,70.9757,197.26,197.14,2.59956735]
[1756759594858,12.16227338,197.15,197.1,6.99456135]
[1756759595058,534.48,197.14,196.96,11.17941514]
[1756759595259,12.16227338,197.11,196.97,4.39325543]
[1756759595554,340.82,197.13,196.98,4.39325543]
[1756759595555,12.16227338,197.07,196.98,4.39325543]
[1756759595858,12.16227338,197.08,196.99,4.39325543]
[1756759596055,12.16227338,197.08,196.93,11.17941514]
[1756759596258,193.92,197.07,196.96,6.99456135]
[1756759596458,193.84,197.06,196.88,7.98]
[1756759596961,12.16227338,197.14,196.93,7.98]
[1756759596962,193.7,197.14,196.93,7.98]
[1756759597266,193.7,197.14,196.94,12.16227338]
[1756759597559,12.16227338,197.2,197.05,6.99456135]
[1756759597755,193.62,197.13,197.01,6.99456135]
[1756759597959,5.59269295,197.12,196.93,7.98]
[1756759598160,199.03269295,197.11,196.93,7.98]
[1756759598355,5.59269295,197.1,196.99,6.99456135]
[1756759598554,5.59269295,197.09,196.99,6.99456135]
[1756759598749,5.59269295,197.08,196.85,8.12]
[1756759598950,5.59269295,197.07,196.89,8.12]
[1756759599257,5.59269295,197.06,196.98,12.16227338]
[1756759599561,340.88,197.21,196.99,8.12]
[1756759599860,5.6,197.24,197.04,8.12]
[1756759600059,193.66,197.23,197.05,4.76049022]
[1756759600361,7.53,197.16,197.06,4.76049022]
[1756759600557,7.53,197.11,197.07,4.75818399]
[1756759600758,7.18,197.09,196.89,8.12]
[1756759600959,340.96,197.11,196.94,8.12]
[1756759601257,12.16227338,197.09,196.94,8.12]
[1756759601460,14.58227338,197.09,197.0,3.19178802]
[1756759601755,340.96,197.11,197.02,3.19178802]
[1756759601956,534.1,197.11,196.94,8.12]
[1756759602161,2.42,197.1,196.77,65.5]
[1756759602351,2.42,196.93,196.65,8.12]
[1756759602557,69.4,196.92,196.65,8.12]
[1756759602759,12.16227338,196.89,196.66,12.16227338]
[1756759602957,198.98,196.88,196.66,12.16227338]
[1756759603156,73.5328,196.88,196.71,20.28227338]
[1756759603355,270.0847,196.9,196.71,20.28227338]
[1756759603559,75.6841,196.88,196.71,20.28227338]
[1756759604059,71.1047,196.9,196.71,20.28227338]
[1756759604259,343.4,196.94,196.76,12.16227338]
[1756759604458,340.98,196.94,196.77,8.12]
[1756759604664,340.98,196.94,196.81,12.16227338]
[1756759605462,2.42,197.1,196.87,8.12]
[1756759605666,203.64122739,197.09,196.87,8.12]
[1756759605957,14.58227338,197.07,196.87,8.12]
[1756759606160,5.42122739,197.06,196.87,8.12]
[1756759606364,5.42122739,197.05,196.88,8.12]
[1756759606564,197.9,197.11,196.93,8.12]
[1756759606764,5.42474504,197.1,196.93,8.12]
[1756759606958,5.42474504,197.09,196.93,8.12]
[1756759607264,197.9,197.11,196.93,8.12]
[1756759607458,12.16227338,197.07,196.84,12.16227338]
[1756759607664,2.42,197.06,196.82,8.12]
[1756759607957,2.42,197.01,196.82,8.12]
[1756759608163,67.98,197.0,196.82,8.12]
[1756759608763,2.42,197.01,196.82,8.12]
[1756759608962,341.14,197.04,196.84,12.16227338]
[1756759609156,341.14,197.04,196.85,8.12]
[1756759609359,341.14,197.04,196.9,8.12]
[1756759609856,2.42,197.03,196.79,12.16227338]
[1756759610857,196.08,197.02,196.8,8.12]
[1756759611460,14.58227338,197.03,196.8,8.12]
[1756759611668,195.66,197.02,196.8,8.12]
[1756759611857,71.1203,196.86,196.72,8.12]
[1756759612061,71.1424,196.8,196.72,8.12]
[1756759612265,67.33539279,196.8,196.72,8.12]
[1756759612458,67.33539279,196.8,196.66,8.12]
[1756759612663,71.1203,196.86,196.67,4.47039042]
[1756759612861,71.1203,196.86,196.68,8.12]
[1756759613661,5.45893519,196.85,196.68,8.12]
[1756759613864,5.45893519,196.84,196.68,8.12]
[1756759614065,2.42,196.82,196.61,8.12]
[1756759614257,5.45780526,196.81,196.61,8.12]
[1756759614457,5.45780526,196.8,196.61,8.12]
[1756759614663,5.45780526,196.79,196.66,8.12]
[1756759614862,90.66,196.86,196.66,8.12]
[1756759614863,5.45780526,196.78,196.66,8.12]
[1756759615065,5.45780526,196.77,196.66,8.12]
[1756759615263,2.42,196.82,196.66,8.12]
[1756759615264,5.45780526,196.76,196.66,8.12]
[1756759615571,5.45780526,196.75,196.66,8.12]
[1756759615864,2.42,196.82,196.66,8.12]
[1756759616065,5.22680252,196.81,196.66,8.12]
[1756759616364,2.42,196.82,196.66,8.12]
[1756759616668,341.24,196.88,196.66,8.12]
[1756759617464,341.24,196.88,196.71,8.12]
[1756759619261,341.24,196.88,196.73,12.16227338]
[1756759619763,412.3519,196.88,196.73,12.16227338]
[1756759619965,71.1309,196.83,196.71,8.12]
[1756759620269,71.1344,196.82,196.71,8.12]
[1756759620465,71.1344,196.82,196.68,12.16227338]
[1756759620466,71.1518,196.77,196.64,8.12]
[1756759620664,71.1592,196.75,196.64,8.12]
[1756759620858,71.1338,196.82,196.65,12.16227338]
[1756759621057,71.1555,196.76,196.65,12.16227338]
[1756759621262,71.1343,196.82,196.65,12.16227338]
[1756759621469,2.45,196.92,196.71,8.12]
[1756759621660,7.36314788,196.91,196.81,8.12]
[1756759621966,4.58003931,196.9,196.81,8.12]
[1756759622262,7.36494482,196.89,196.7,341.4]
[1756759622466,71.069,197.0,196.7,341.4]
[1756759622467,7.36494482,196.88,196.78,8.12]
[1756759622658,2.78581985,196.87,196.83,8.12]
[1756759622867,71.0766,196.98,196.83,8.12]
[1756759623068,7.28466733,196.97,196.83,12.16227338]
[1756759623272,7.53,197.09,196.89,8.12]
[1756759623569,71.0404,197.08,196.95,12.16227338]
[1756759624073,4.5674,197.06,196.95,12.16227338]
[1756759624363,7.53,197.15,197.0,12.16227338]
[1756759624568,5.24410798,197.17,197.05,12.16227338]
[1756759624765,5.24410798,197.21,197.06,8.12]
[1756759624965,5.24410798,197.22,197.1,12.16227338]
[1756759625563,5.24410798,197.22,197.06,8.12]
[1756759625564,70.9826,197.24,197.06,8.12]
[1756759625766,7.53,197.23,197.06,8.12]
[1756759626075,71.007,197.17,197.06,8.12]
[1756759626367,71.0139,197.16,197.03,341.38]
[1756759626567,7.53,197.16,196.98,20.28227338]
[1756759626766,71.019,197.14,196.98,20.28227338]
[1756759626968,71.0219,197.13,196.98,20.28227338]
[1756759627267,78.5409,197.16,196.98,20.28227338]
[1756759627268,7.53,197.16,196.98,20.28227338]
[1756759627664,7.53,197.16,196.98,8.12]
[1756759627965,7.53,197.16,196.98,20.28227338]
[1756759628262,7.86,197.15,196.93,12.16227338]
[1756759628463,12.16227338,197.16,196.93,12.16227338]
[1756759628661,7.86,197.15,196.93,12.16227338]
[1756759629164,7.86,197.15,196.94,7.62]
[1756759629363,13.10410798,197.21,196.99,7.62]
[1756759629566,7.86,197.21,196.99,7.62]
[1756759629968,7.86,197.21,197.04,12.16227338]
[1756759630270,7.86,197.29,197.14,12.16227338]
[1756759630472,5.24410798,197.35,197.2,7.62]
[1756759630663,5.24410798,197.37,197.24,12.16227338]
[1756759630863,5.24410798,197.38,197.25,2.73935423]
[1756759631062,5.24410798,197.39,197.29,12.16227338]
[1756759631265,5.24410798,197.39,197.3,2.73935423]
[1756759631460,5.24410798,197.41,197.31,2.73935423]
[1756759631665,5.24410798,197.37,197.26,12.16227338]
[1756759631865,5.24410798,197.39,197.27,2.73971417]
[1756759632066,5.24410798,197.39,197.28,2.73971417]
[1756759632261,5.24410798,197.39,197.31,12.16227338]
[1756759632460,7.86,197.5,197.32,2.73971417]
[1756759632461,5.24410798,197.42,197.32,2.73971417]
[1756759632665,5.24410798,197.47,197.36,12.16227338]
[1756759632865,7.86585235,197.53,197.38,7.62]
[1756759633070,7.86585235,197.55,197.39,2.73971417]
[1756759633370,7.86585235,197.5,197.46,12.16227338]
[1756759633569,15.72585235,197.65,197.46,12.16227338]
[1756759633762,7.86,197.64,197.46,12.16227338]
[1756759633968,7.86,197.64,197.38,7.62]
[1756759634161,20.02812573,197.65,197.42,12.16227338]
[1756759634369,12.16227338,197.6,197.35,12.16227338]
[1756759634566,104.28,197.59,197.35,12.16227338]
[1756759634766,104.28,197.59,197.31,7.62]
[1756759634767,7.86,197.55,197.21,7.62]
[1756759634971,7.86,197.53,197.3,12.16227338]
[1756759635167,7.86,197.53,197.35,12.16227338]
[1756759635168,70.8881,197.51,197.35,12.16227338]
[1756759635465,70.9103,197.44,197.28,7.62]
[1756759635772,70.9098,197.44,197.34,7.62]
[1756759635967,70.9174,197.42,197.3,12.16227338]
[1756759636173,70.9174,197.42,197.28,12.16227338]
[1756759636174,70.9242,197.4,197.28,12.16227338]
[1756759636372,70.9317,197.38,197.28,12.16227338]
[1756759636567,70.9317,197.38,197.26,7.62]
[1756759636568,70.9458,197.34,197.22,12.16227338]
[1756759636770,70.935,197.37,197.22,12.16227338]
[1756759636971,70.935,197.37,197.2,340.98]
[1756759636972,7.86,197.39,197.1,7.62]
[1756759637180,7.86,197.37,197.12,12.16227338]
[1756759637374,198.52,197.36,197.13,7.63443378]
[1756759637583,7.86,197.37,197.17,19.78227338]
[1756759637872,7.86,197.37,197.18,10.13419574]
[1756759638068,7.86,197.37,197.18,12.16227338]
[1756759638669,7.86,197.37,197.17,7.62]
[1756759638871,7.86,197.35,197.18,5.32643884]
[1756759639075,12.16227338,197.31,197.02,205.76]
[1756759639277,7.86,197.3,197.04,12.16227338]
[1756759639579,7.86,197.28,197.05,12.9686082]
[1756759639878,7.86,197.24,197.07,7.62]
[1756759640076,7.86,197.24,197.06,12.9686082]
[1756759640077,7.86,197.24,197.08,4.81672529]
[1756759640274,4.68512179,197.24,197.09,25.48669762]
[1756759640475,124.0,197.37,197.14,12.16227338]
[1756759640476,5.3259569,197.37,197.14,12.16227338]
[1756759640674,5.3259569,197.37,197.15,9.31540133]
[1756759640872,12.16227338,197.36,197.16,9.31540133]
[1756759641180,12.16227338,197.31,197.17,9.31540133]
[1756759641378,12.16227338,197.26,197.04,19.78227338]
[1756759641568,197.42,197.25,197.05,11.08765196]
[1756759641774,197.24,197.24,197.06,4.94399493]
[1756759641967,197.24,197.24,197.07,4.94399493]
[1756759642174,197.24,197.24,197.08,4.94399493]
[1756759642373,340.84,197.38,197.01,12.16227338]
[1756759642374,7.86,197.34,197.09,12.56399493]
[1756759642679,340.84,197.38,197.1,4.94399493]
[1756759642680,7.86,197.29,197.1,4.94399493]
[1756759642876,7.86,197.29,197.11,4.94399493]
[1756759643073,7.86,197.29,197.12,4.94399493]
[1756759643275,7.86,197.29,197.13,12.56399493]
[1756759643472,12.16227338,197.56,197.17,7.62]
[1756759643473,7.86,197.37,197.17,7.62]
[1756759643678,7.86,197.37,197.18,4.94399493]
[1756759643875,20.02227338,197.37,197.19,4.94399493]
[1756759644078,7.86,197.31,197.2,4.94399493]
[1756759644379,4.9,197.26,197.1,4.03804879]
[1756759644672,4.9,197.26,197.03,19.78227338]
[1756759644673,4.9,197.26,197.11,4.03804879]
[1756759644880,4.9,197.26,197.12,4.03804879]
[1756759645085,4.9,197.26,197.08,12.16227338]
[1756759645377,70.9783,197.25,197.09,4.10715525]
[1756759645679,4.9,197.24,197.1,4.10715525]
[1756759645876,4.9,197.24,197.11,4.10715525]
[1756759646078,4.9,197.24,197.12,4.10715525]
[1756759646272,4.9,197.24,197.13,4.10715525]
[1756759646479,196.66,197.31,197.14,4.10715525]
[1756759646674,196.66,197.31,197.15,4.10715525]
[1756759646980,4.9,197.3,197.16,4.10715525]